[Event "Titled Tuesday Blitz December 20 Early 2022"]
[White "Djeno, Drago"]
[Black "Marenco Fernandez, Oscar"]
[WhiteFideId "14400421"]
[BlackFideId "6503080"]
[WhiteElo "2223"]
[BlackElo "1885"]
[Result "1/2-1/2"]
[Round "02"]
[TimeControl "180+2"]
[Date "2022.12.20"]
[WhiteClock "0:00:12"]
[BlackClock "0:00:08"]

1. e4 {[%clk 0:03:00]}  c5 {[%clk 0:02:59]} 2. Nc3 {[%clk 0:03:00]}  d6 {[%clk 0:03:00]} 3. d4 {[%clk 0:02:58]}  cxd4 {[%clk 0:03:00]} 4. Qxd4 {[%clk 0:02:59]}  Nc6 {[%clk 0:03:00]} 5. Qd2 {[%clk 0:02:59]}  g6 {[%clk 0:03:00]} 6. b3 {[%clk 0:02:59]}  Bh6 {[%clk 0:03:00]} 7. f4 {[%clk 0:02:59]}  Nf6 {[%clk 0:03:01]} 8. Bb2 {[%clk 0:02:59]}  O-O {[%clk 0:03:01]} 9. O-O-O {[%clk 0:02:59]}  e5 {[%clk 0:03:00]} 10. g3 {[%clk 0:02:59]}  Re8 {[%clk 0:03:00]} 11. Kb1 {[%clk 0:02:51]}  Nd4 {[%clk 0:02:59]} 12. Bg2 {[%clk 0:02:46]}  Bg4 {[%clk 0:02:59]} 13. Re1 {[%clk 0:02:45]}  b5 {[%clk 0:02:56]} 14. h3 {[%clk 0:02:42]}  Bd7 {[%clk 0:02:54]} 15. Nge2 {[%clk 0:02:38]}  Nxe2 {[%clk 0:02:47]} 16. Nxe2 {[%clk 0:02:27]}  Bc6 {[%clk 0:02:42]} 17. Qe3 {[%clk 0:02:07]}  a5 {[%clk 0:02:32]} 18. Nc3 {[%clk 0:01:51]}  b4 {[%clk 0:02:27]} 19. Nd5 {[%clk 0:01:52]}  Bxd5 {[%clk 0:02:17]} 20. exd5 {[%clk 0:01:52]}  exf4 {[%clk 0:02:13]} 21. Qd4 {[%clk 0:01:45]}  Bg7 {[%clk 0:02:01]} 22. Qxf4 {[%clk 0:01:45]}  Rxe1+ {[%clk 0:01:50]} 23. Rxe1 {[%clk 0:01:44]}  Nh5 {[%clk 0:01:50]} 24. Qe3 {[%clk 0:01:37]}  Bxb2 {[%clk 0:01:47]} 25. Kxb2 {[%clk 0:01:38]}  Qf6+ {[%clk 0:01:41]} 26. Kb1 {[%clk 0:01:38]}  a4 {[%clk 0:01:38]} 27. Rf1 {[%clk 0:01:27]}  Qd8 {[%clk 0:01:20]} 28. g4 {[%clk 0:01:26]}  Ng7 {[%clk 0:01:05]} 29. Qf4 {[%clk 0:01:24]}  Qe7 {[%clk 0:00:53]} 30. Qxb4 {[%clk 0:01:21]}  axb3 {[%clk 0:00:53]} 31. axb3 {[%clk 0:01:10]}  Qe5 {[%clk 0:00:47]} 32. c3 {[%clk 0:01:07]}  Qe2 {[%clk 0:00:44]} 33. Qb7 {[%clk 0:01:04]}  Qd3+ {[%clk 0:00:20]} 34. Kb2 {[%clk 0:01:02]}  Qd2+ {[%clk 0:00:20]} 35. Kb1 {[%clk 0:01:01]}  Qa2+ {[%clk 0:00:17]} 36. Kc1 {[%clk 0:01:01]}  f5 {[%clk 0:00:17]} 37. Rf2 {[%clk 0:00:38]}  Qa1+ {[%clk 0:00:16]} 38. Kd2 {[%clk 0:00:37]}  Ra2+ {[%clk 0:00:12]} 39. Kd3 {[%clk 0:00:38]}  Qd1+ {[%clk 0:00:12]} 40. Kc4 {[%clk 0:00:37]}  Rxf2 {[%clk 0:00:11]} 41. Qa8+ {[%clk 0:00:34]}  Kf7 {[%clk 0:00:10]} 42. Qa7+ {[%clk 0:00:34]}  Kf6 {[%clk 0:00:07]} 43. Qxf2 {[%clk 0:00:35]}  Qa1 {[%clk 0:00:04]} 44. Qd4+ {[%clk 0:00:24]}  Kf7 {[%clk 0:00:04]} 45. Kb5 {[%clk 0:00:23]}  Qa8 {[%clk 0:00:03]} 46. Qb6 {[%clk 0:00:20]}  fxg4 {[%clk 0:00:03]} 47. hxg4 {[%clk 0:00:20]}  Qe8+ {[%clk 0:00:01]} 48. Qc6 {[%clk 0:00:20]}  Qe5 {[%clk 0:00:02]} 49. Qd7+ {[%clk 0:00:19]}  Kf6 {[%clk 0:00:02]} 50. c4 {[%clk 0:00:17]}  h5 {[%clk 0:00:03]} 51. Qd8+ {[%clk 0:00:17]}  Kf7 {[%clk 0:00:03]} 52. gxh5 {[%clk 0:00:17]}  gxh5 {[%clk 0:00:03]} 53. Bh3 {[%clk 0:00:18]}  Kg6 {[%clk 0:00:03]} 54. Bd7 {[%clk 0:00:17]}  Kh6 {[%clk 0:00:02]} 55. Qh8+ {[%clk 0:00:17]}  Kg6 {[%clk 0:00:03]} 56. Be6 {[%clk 0:00:17]}  Kf6 {[%clk 0:00:03]} 57. Qf8+ {[%clk 0:00:17]}  Kg6 {[%clk 0:00:03]} 58. Qf7+ {[%clk 0:00:18]}  Kh7 {[%clk 0:00:04]} 59. c5 {[%clk 0:00:17]}  dxc5 {[%clk 0:00:03]} 60. Kc6 {[%clk 0:00:17]}  c4 {[%clk 0:00:03]} 61. bxc4 {[%clk 0:00:17]}  h4 {[%clk 0:00:04]} 62. d6 {[%clk 0:00:17]}  Qxe6 {[%clk 0:00:03]} 63. Qf4 {[%clk 0:00:15]}  Qh6 {[%clk 0:00:02]} 64. Qe4+ {[%clk 0:00:15]}  Qg6 {[%clk 0:00:02]} 65. Qxh4+ {[%clk 0:00:14]}  Kg8 {[%clk 0:00:03]} 66. Qd8+ {[%clk 0:00:14]}  Kh7 {[%clk 0:00:04]} 67. Qh4+ {[%clk 0:00:14]}  Kg8 {[%clk 0:00:04]} 68. c5 {[%clk 0:00:13]}  Nf5 {[%clk 0:00:04]} 69. Qd8+ {[%clk 0:00:13]}  Kf7 {[%clk 0:00:05]} 70. Qd7+ {[%clk 0:00:13]}  Kf6 {[%clk 0:00:05]} 71. Qd8+ {[%clk 0:00:13]}  Ke5 {[%clk 0:00:06]} 72. Qh8+ {[%clk 0:00:13]}  Ke4 {[%clk 0:00:05]} 73. Qh1+ {[%clk 0:00:13]}  Kd4 {[%clk 0:00:06]} 74. Qa1+ {[%clk 0:00:12]}  Kc4 {[%clk 0:00:06]} 75. Qc1+ {[%clk 0:00:12]}  Kd4 {[%clk 0:00:06]} 76. Qb2+ {[%clk 0:00:12]}  Kc4 {[%clk 0:00:07]} 77. Qa2+ {[%clk 0:00:13]}  Kd4 {[%clk 0:00:07]} 78. Qd2+ {[%clk 0:00:13]}  Kc4 {[%clk 0:00:07]} 79. Qd5+ {[%clk 0:00:13]}  Kb4 {[%clk 0:00:07]} 80. Qd2+ {[%clk 0:00:12]}  Kc4 {[%clk 0:00:07]} 81. Qc2+ {[%clk 0:00:12]}  Kd4 {[%clk 0:00:08]} 82. Qd2+ {[%clk 0:00:12]}  Kc4 {[%clk 0:00:08]} 1/2-1/2


[Site "https://www.chess.com"]

[Event "Titled Tuesday Blitz December 20 Early 2022"]
[White "Ducrest, Pierre"]
[Black "Bilandani, Vansh"]
[WhiteFideId "1303627"]
[BlackFideId "8511292"]
[WhiteElo "2004"]
[BlackElo "2488"]
[Result "1/2-1/2"]
[Round "02"]
[TimeControl "180+2"]
[Date "2022.12.20"]
[WhiteClock "0:00:15"]
[BlackClock "0:00:10"]

1. d4 {[%clk 0:03:00]}  d5 {[%clk 0:02:58]} 2. c4 {[%clk 0:03:00]}  c6 {[%clk 0:02:57]} 3. Nc3 {[%clk 0:03:00]}  Nf6 {[%clk 0:02:57]} 4. Nf3 {[%clk 0:03:00]}  e6 {[%clk 0:02:57]} 5. e3 {[%clk 0:03:00]}  Nbd7 {[%clk 0:02:51]} 6. Qc2 {[%clk 0:03:00]}  Bd6 {[%clk 0:02:49]} 7. b3 {[%clk 0:03:00]}  O-O {[%clk 0:02:41]} 8. Be2 {[%clk 0:03:00]}  e5 {[%clk 0:02:23]} 9. cxd5 {[%clk 0:02:59]}  Nxd5 {[%clk 0:02:17]} 10. Nxd5 {[%clk 0:02:41]}  cxd5 {[%clk 0:02:17]} 11. dxe5 {[%clk 0:02:42]}  Nxe5 {[%clk 0:02:17]} 12. Bb2 {[%clk 0:02:42]}  Nxf3+ {[%clk 0:02:05]} 13. Bxf3 {[%clk 0:02:30]}  Bb4+ {[%clk 0:02:04]} 14. Kf1 {[%clk 0:02:20]}  Be6 {[%clk 0:01:48]} 15. Rd1 {[%clk 0:02:19]}  Qa5 {[%clk 0:01:42]} 16. a3 {[%clk 0:01:49]}  Bxa3 {[%clk 0:01:33]} 17. Ra1 {[%clk 0:01:49]}  Qc5 {[%clk 0:01:11]} 18. Qxc5 {[%clk 0:01:24]}  Bxc5 {[%clk 0:01:09]} 19. Ke2 {[%clk 0:01:25]}  Rfd8 {[%clk 0:00:57]} 20. Rhd1 {[%clk 0:01:24]}  a6 {[%clk 0:00:50]} 21. Bd4 {[%clk 0:01:18]}  Rac8 {[%clk 0:00:47]} 22. Ra2 {[%clk 0:00:29]}  Bxd4 {[%clk 0:00:27]} 23. Rxd4 {[%clk 0:00:29]}  g6 {[%clk 0:00:23]} 24. Rad2 {[%clk 0:00:20]}  Rc3 {[%clk 0:00:23]} 25. b4 {[%clk 0:00:20]}  Rb3 {[%clk 0:00:12]} 26. h4 {[%clk 0:00:20]}  h5 {[%clk 0:00:12]} 27. g3 {[%clk 0:00:20]}  Rc8 {[%clk 0:00:10]} 28. Kf1 {[%clk 0:00:19]}  Rc1+ {[%clk 0:00:10]} 29. Kg2 {[%clk 0:00:20]}  Rc4 {[%clk 0:00:10]} 30. Rxc4 {[%clk 0:00:18]}  dxc4 {[%clk 0:00:11]} 31. Bxb7 {[%clk 0:00:19]}  Rxb4 {[%clk 0:00:10]} 32. Bxa6 {[%clk 0:00:18]}  c3 {[%clk 0:00:10]} 33. Rc2 {[%clk 0:00:18]}  Rb3 {[%clk 0:00:11]} 34. Bd3 {[%clk 0:00:18]}  Ra3 {[%clk 0:00:11]} 35. Kf3 {[%clk 0:00:18]}  Bb3 {[%clk 0:00:11]} 36. Rc1 {[%clk 0:00:18]}  Bd5+ {[%clk 0:00:11]} 37. e4 {[%clk 0:00:18]}  Be6 {[%clk 0:00:11]} 38. Ke3 {[%clk 0:00:19]}  Kg7 {[%clk 0:00:08]} 39. Kd4 {[%clk 0:00:19]}  Ra2 {[%clk 0:00:07]} 40. Rc2 {[%clk 0:00:19]}  Ra3 {[%clk 0:00:05]} 41. Rxc3 {[%clk 0:00:19]}  Ra2 {[%clk 0:00:06]} 42. Rc2 {[%clk 0:00:19]}  Ra1 {[%clk 0:00:06]} 43. Ke3 {[%clk 0:00:19]}  Ra3 {[%clk 0:00:06]} 44. Kd2 {[%clk 0:00:19]}  Ra1 {[%clk 0:00:06]} 45. f3 {[%clk 0:00:19]}  Rg1 {[%clk 0:00:07]} 46. Ke3 {[%clk 0:00:18]}  Rxg3 {[%clk 0:00:07]} 47. Kf2 {[%clk 0:00:18]}  Rh3 {[%clk 0:00:07]} 48. Kg2 {[%clk 0:00:17]}  Rxh4 {[%clk 0:00:07]} 49. Rc1 {[%clk 0:00:17]}  Rf4 {[%clk 0:00:07]} 50. Kg3 {[%clk 0:00:17]}  g5 {[%clk 0:00:08]} 51. Rc5 {[%clk 0:00:17]}  h4+ {[%clk 0:00:08]} 52. Kg2 {[%clk 0:00:16]}  f6 {[%clk 0:00:08]} 53. Rc6 {[%clk 0:00:16]}  Kf7 {[%clk 0:00:08]} 54. Rc7+ {[%clk 0:00:16]}  Kf8 {[%clk 0:00:08]} 55. Rc6 {[%clk 0:00:16]}  Ke7 {[%clk 0:00:09]} 56. Rc7+ {[%clk 0:00:16]}  Kd6 {[%clk 0:00:09]} 57. Ra7 {[%clk 0:00:16]}  h3+ {[%clk 0:00:10]} 58. Kg3 {[%clk 0:00:16]}  h2 {[%clk 0:00:10]} 59. Ra1 {[%clk 0:00:16]}  Rh4 {[%clk 0:00:11]} 60. Rh1 {[%clk 0:00:15]}  Ke5 {[%clk 0:00:11]} 61. Rxh2 {[%clk 0:00:15]}  Rxh2 {[%clk 0:00:11]} 62. Kxh2 {[%clk 0:00:16]}  Kf4 {[%clk 0:00:11]} 63. Kg2 {[%clk 0:00:16]}  Bd7 {[%clk 0:00:10]} 64. Kf2 {[%clk 0:00:16]}  Ba4 {[%clk 0:00:11]} 65. Be2 {[%clk 0:00:16]}  Bc2 {[%clk 0:00:10]} 66. Bc4 {[%clk 0:00:13]}  Bd1 {[%clk 0:00:10]} 67. Be2 {[%clk 0:00:14]}  Bxe2 {[%clk 0:00:11]} 68. Kxe2 {[%clk 0:00:14]}  Kg3 {[%clk 0:00:11]} 69. Ke3 {[%clk 0:00:14]}  g4 {[%clk 0:00:08]} 70. fxg4 {[%clk 0:00:14]}  Kxg4 {[%clk 0:00:09]} 71. e5 {[%clk 0:00:14]}  fxe5 {[%clk 0:00:09]} 72. Ke4 {[%clk 0:00:14]}  Kg5 {[%clk 0:00:10]} 73. Kxe5 {[%clk 0:00:15]} 1/2-1/2


[Site "https://www.chess.com"]

[Event "Titled Tuesday Blitz December 20 Early 2022"]
[White "EdgePlosion"]
[Black "HashtagChess"]
[WhiteElo "2420"]
[BlackElo "1812"]
[Result "1-0"]
[Round "02"]
[TimeControl "180+2"]
[Date "2022.12.20"]
[WhiteClock "0:02:36"]
[BlackClock "0:01:06"]

1. e4 {[%clk 0:03:00]}  c5 {[%clk 0:02:58]} 2. Nf3 {[%clk 0:03:00]}  e6 {[%clk 0:02:58]} 3. g3 {[%clk 0:02:59]}  d5 {[%clk 0:02:56]} 4. exd5 {[%clk 0:02:59]}  exd5 {[%clk 0:02:56]} 5. Bg2 {[%clk 0:03:00]}  Nf6 {[%clk 0:02:57]} 6. d4 {[%clk 0:03:00]}  Nc6 {[%clk 0:02:56]} 7. O-O {[%clk 0:03:00]}  cxd4 {[%clk 0:02:54]} 8. Nxd4 {[%clk 0:03:00]}  Be7 {[%clk 0:02:52]} 9. b3 {[%clk 0:02:52]}  O-O {[%clk 0:02:51]} 10. Bb2 {[%clk 0:02:53]}  Bg4 {[%clk 0:02:37]} 11. Nxc6 {[%clk 0:02:42]}  bxc6 {[%clk 0:02:33]} 12. Qd3 {[%clk 0:02:43]}  Re8 {[%clk 0:01:55]} 13. Nd2 {[%clk 0:02:42]}  h6 {[%clk 0:01:35]} 14. Nf3 {[%clk 0:02:41]}  Qc8 {[%clk 0:01:15]} 15. Rfe1 {[%clk 0:02:38]}  Bf5 {[%clk 0:01:11]} 16. Qc3 {[%clk 0:02:37]}  Ne4 {[%clk 0:01:06]} 17. Qxg7# {[%clk 0:02:36]} 1-0


[Site "https://www.chess.com"]

[Event "Titled Tuesday Blitz December 20 Early 2022"]
[White "Eloisa Navez, Angel"]
[Black "BetonCarlsen"]
[WhiteFideId "5117305"]
[WhiteElo "1942"]
[BlackElo "2216"]
[Result "1-0"]
[Round "02"]
[TimeControl "180+2"]
[Date "2022.12.20"]
[WhiteClock "0:00:22"]
[BlackClock "0:00:23"]

1. e4 {[%clk 0:02:57]}  c6 {[%clk 0:02:57]} 2. Nf3 {[%clk 0:02:56]}  d5 {[%clk 0:02:55]} 3. Nc3 {[%clk 0:02:56]}  dxe4 {[%clk 0:02:54]} 4. Nxe4 {[%clk 0:02:56]}  Nf6 {[%clk 0:02:54]} 5. Qe2 {[%clk 0:02:56]}  Nxe4 {[%clk 0:02:45]} 6. Qxe4 {[%clk 0:02:57]}  Nd7 {[%clk 0:02:44]} 7. Bc4 {[%clk 0:02:57]}  Nf6 {[%clk 0:02:43]} 8. Qe2 {[%clk 0:02:56]}  Bf5 {[%clk 0:02:37]} 9. Ne5 {[%clk 0:02:54]}  e6 {[%clk 0:02:37]} 10. c3 {[%clk 0:02:51]}  Be7 {[%clk 0:02:21]} 11. d4 {[%clk 0:02:50]}  O-O {[%clk 0:02:15]} 12. Bg5 {[%clk 0:02:41]}  Nd5 {[%clk 0:02:09]} 13. Bxe7 {[%clk 0:02:40]}  Qxe7 {[%clk 0:02:01]} 14. g4 {[%clk 0:02:30]}  Bg6 {[%clk 0:01:58]} 15. h4 {[%clk 0:02:30]}  f6 {[%clk 0:01:44]} 16. Nxg6 {[%clk 0:02:29]}  hxg6 {[%clk 0:01:45]} 17. O-O-O {[%clk 0:02:24]}  Rfd8 {[%clk 0:01:42]} 18. Rde1 {[%clk 0:02:23]}  Rd6 {[%clk 0:01:41]} 19. Qe4 {[%clk 0:02:12]}  Qf7 {[%clk 0:01:38]} 20. Bd3 {[%clk 0:02:08]}  f5 {[%clk 0:01:32]} 21. Qe5 {[%clk 0:02:04]}  Rad8 {[%clk 0:01:29]} 22. h5 {[%clk 0:01:59]}  Ne7 {[%clk 0:01:16]} 23. h6 {[%clk 0:01:52]}  Qf6 {[%clk 0:01:09]} 24. Bc4 {[%clk 0:01:25]}  Qxe5 {[%clk 0:01:04]} 25. dxe5 {[%clk 0:01:25]}  Rd2 {[%clk 0:01:02]} 26. Bxe6+ {[%clk 0:01:25]}  Kh7 {[%clk 0:01:02]} 27. hxg7+ {[%clk 0:01:17]}  Kxg7 {[%clk 0:01:03]} 28. Rd1 {[%clk 0:01:15]}  Rxd1+ {[%clk 0:00:57]} 29. Rxd1 {[%clk 0:01:16]}  Rxd1+ {[%clk 0:00:56]} 30. Kxd1 {[%clk 0:01:17]}  fxg4 {[%clk 0:00:56]} 31. Bxg4 {[%clk 0:01:16]}  Kf7 {[%clk 0:00:53]} 32. Ke2 {[%clk 0:01:14]}  Nd5 {[%clk 0:00:52]} 33. Kf3 {[%clk 0:01:08]}  b6 {[%clk 0:00:49]} 34. Ke4 {[%clk 0:01:07]}  Ne7 {[%clk 0:00:47]} 35. Bd7 {[%clk 0:01:06]}  a5 {[%clk 0:00:46]} 36. a4 {[%clk 0:01:03]}  g5 {[%clk 0:00:46]} 37. f4 {[%clk 0:01:01]}  gxf4 {[%clk 0:00:43]} 38. Kxf4 {[%clk 0:01:02]}  Nd5+ {[%clk 0:00:43]} 39. Ke4 {[%clk 0:00:59]}  Ne7 {[%clk 0:00:42]} 40. Kd4 {[%clk 0:00:57]}  Kg6 {[%clk 0:00:41]} 41. b4 {[%clk 0:00:52]}  Kg5 {[%clk 0:00:34]} 42. bxa5 {[%clk 0:00:49]}  bxa5 {[%clk 0:00:35]} 43. Kc5 {[%clk 0:00:49]}  Kf4 {[%clk 0:00:35]} 44. Kd6 {[%clk 0:00:43]}  Nd5 {[%clk 0:00:33]} 45. e6 {[%clk 0:00:28]}  Nxc3 {[%clk 0:00:29]} 46. e7 {[%clk 0:00:27]}  Ne4+ {[%clk 0:00:29]} 47. Ke6 {[%clk 0:00:24]}  Nc5+ {[%clk 0:00:27]} 48. Kf7 {[%clk 0:00:24]}  Nxd7 {[%clk 0:00:25]} 49. e8=Q {[%clk 0:00:23]}  Ne5+ {[%clk 0:00:24]} 50. Ke6 {[%clk 0:00:23]}  Ke4 {[%clk 0:00:23]} 51. Kd6 {[%clk 0:00:22]} 1-0


[Site "https://www.chess.com"]

[Event "Titled Tuesday Blitz December 20 Early 2022"]
[White "Er_is_geen_hoop_meer"]
[Black "yoelpolanco"]
[WhiteElo "2538"]
[BlackElo "2374"]
[Result "0-1"]
[Round "02"]
[TimeControl "180+2"]
[Date "2022.12.20"]
[WhiteClock "0:02:05"]
[BlackClock "0:01:57"]

1. b4 {[%clk 0:03:00]}  e6 {[%clk 0:02:59]} 2. Bb2 {[%clk 0:02:58]}  Nf6 {[%clk 0:02:59]} 3. a3 {[%clk 0:02:58]}  c5 {[%clk 0:02:59]} 4. b5 {[%clk 0:02:58]}  d5 {[%clk 0:02:59]} 5. e3 {[%clk 0:02:48]}  Bd6 {[%clk 0:02:57]} 6. g4 {[%clk 0:02:44]}  O-O {[%clk 0:02:56]} 7. g5 {[%clk 0:02:44]}  Nfd7 {[%clk 0:02:56]} 8. h4 {[%clk 0:02:43]}  a6 {[%clk 0:02:54]} 9. a4 {[%clk 0:02:42]}  axb5 {[%clk 0:02:54]} 10. axb5 {[%clk 0:02:43]}  Rxa1 {[%clk 0:02:54]} 11. Bxa1 {[%clk 0:02:44]}  Be5 {[%clk 0:02:44]} 12. Bxe5 {[%clk 0:02:40]}  Nxe5 {[%clk 0:02:43]} 13. f4 {[%clk 0:02:41]}  Ned7 {[%clk 0:02:40]} 14. Bd3 {[%clk 0:02:39]}  e5 {[%clk 0:02:36]} 15. Nc3 {[%clk 0:02:37]}  c4 {[%clk 0:02:24]} 16. Bxh7+ {[%clk 0:02:31]}  Kxh7 {[%clk 0:02:24]} 17. Nxd5 {[%clk 0:02:30]}  Nc5 {[%clk 0:02:13]} 18. Nc3 {[%clk 0:02:16]}  exf4 {[%clk 0:02:12]} 19. Nf3 {[%clk 0:02:14]}  fxe3 {[%clk 0:02:04]} 20. Ne5 {[%clk 0:02:05]}  Qxd2+ {[%clk 0:01:57]} 0-1


[Site "https://www.chess.com"]

[Event "Titled Tuesday Blitz December 20 Early 2022"]
[White "Ezat, Mohamed"]
[Black "Timofeeva, Galina"]
[WhiteFideId "10600906"]
[BlackFideId "14106175"]
[WhiteElo "2402"]
[BlackElo "1955"]
[Result "0-1"]
[Round "02"]
[TimeControl "180+2"]
[Date "2022.12.20"]
[WhiteClock "0:00:11"]
[BlackClock "0:01:03"]

1. d4 {[%clk 0:03:00]}  d5 {[%clk 0:02:59]} 2. c4 {[%clk 0:03:00]}  e6 {[%clk 0:02:59]} 3. Nc3 {[%clk 0:03:00]}  c6 {[%clk 0:02:59]} 4. e4 {[%clk 0:02:59]}  dxe4 {[%clk 0:02:55]} 5. Nxe4 {[%clk 0:02:59]}  Bb4+ {[%clk 0:02:54]} 6. Bd2 {[%clk 0:02:58]}  Qxd4 {[%clk 0:02:53]} 7. Bxb4 {[%clk 0:02:58]}  Qxe4+ {[%clk 0:02:54]} 8. Be2 {[%clk 0:02:58]}  Na6 {[%clk 0:02:49]} 9. Bf8 {[%clk 0:02:54]}  Ne7 {[%clk 0:02:44]} 10. Bxg7 {[%clk 0:02:53]}  Rg8 {[%clk 0:02:44]} 11. Bf6 {[%clk 0:02:53]}  Rg6 {[%clk 0:02:42]} 12. Bc3 {[%clk 0:02:08]}  Qxg2 {[%clk 0:02:31]} 13. Qd2 {[%clk 0:02:06]}  Qxh1 {[%clk 0:02:07]} 14. O-O-O {[%clk 0:02:05]}  Nd5 {[%clk 0:02:07]} 15. Nf3 {[%clk 0:02:01]}  Qg2 {[%clk 0:02:05]} 16. cxd5 {[%clk 0:02:00]}  cxd5 {[%clk 0:01:56]} 17. Nh4 {[%clk 0:01:53]}  Qg5 {[%clk 0:01:50]} 18. Nxg6 {[%clk 0:01:53]}  Qxd2+ {[%clk 0:01:50]} 19. Rxd2 {[%clk 0:01:44]}  hxg6 {[%clk 0:01:50]} 20. Bxa6 {[%clk 0:01:42]}  bxa6 {[%clk 0:01:50]} 21. Bf6 {[%clk 0:01:40]}  Kd7 {[%clk 0:01:46]} 22. Rc2 {[%clk 0:01:37]}  Bb7 {[%clk 0:01:46]} 23. Be5 {[%clk 0:01:36]}  Bc6 {[%clk 0:01:45]} 24. Rc3 {[%clk 0:01:33]}  a5 {[%clk 0:01:44]} 25. Rf3 {[%clk 0:01:29]}  Ke7 {[%clk 0:01:42]} 26. Rc3 {[%clk 0:01:25]}  Rc8 {[%clk 0:01:38]} 27. Bd4 {[%clk 0:01:24]}  a6 {[%clk 0:01:37]} 28. b3 {[%clk 0:01:20]}  Kd7 {[%clk 0:01:35]} 29. Rf3 {[%clk 0:01:15]}  Kd6 {[%clk 0:01:25]} 30. Re3 {[%clk 0:00:57]}  a4 {[%clk 0:01:24]} 31. Be5+ {[%clk 0:00:53]}  Ke7 {[%clk 0:01:23]} 32. b4 {[%clk 0:00:44]}  Bb5+ {[%clk 0:01:16]} 33. Kd2 {[%clk 0:00:43]}  Rc4 {[%clk 0:01:14]} 34. Rc3 {[%clk 0:00:27]}  f6 {[%clk 0:01:14]} 35. Rxc4 {[%clk 0:00:25]}  Bxc4 {[%clk 0:01:14]} 36. Bd4 {[%clk 0:00:21]}  Bxa2 {[%clk 0:01:14]} 37. f4 {[%clk 0:00:21]}  Bc4 {[%clk 0:01:12]} 38. Kc3 {[%clk 0:00:21]}  a3 {[%clk 0:01:12]} 39. h4 {[%clk 0:00:20]}  a2 {[%clk 0:01:11]} 40. Kb2 {[%clk 0:00:20]}  e5 {[%clk 0:01:03]} 41. fxe5 {[%clk 0:00:15]}  f5 {[%clk 0:01:03]} 42. Be3 {[%clk 0:00:14]}  Ke6 {[%clk 0:01:03]} 43. Bf4 {[%clk 0:00:14]}  d4 {[%clk 0:01:03]} 44. Ka1 {[%clk 0:00:14]}  Kd5 {[%clk 0:01:03]} 45. Kb2 {[%clk 0:00:13]}  Ke4 {[%clk 0:01:03]} 46. Bg5 {[%clk 0:00:11]}  f4 {[%clk 0:01:03]} 0-1


[Site "https://www.chess.com"]

[Event "Titled Tuesday Blitz December 20 Early 2022"]
[White "FMalexhdez"]
[Black "WPWPWP-2015"]
[WhiteElo "2290"]
[BlackElo "2483"]
[Result "0-1"]
[Round "02"]
[TimeControl "180+2"]
[Date "2022.12.20"]
[WhiteClock "0:00:39"]
[BlackClock "0:02:25"]

1. e4 {[%clk 0:02:48]}  e5 {[%clk 0:02:59]} 2. Nf3 {[%clk 0:02:48]}  Nf6 {[%clk 0:02:59]} 3. d4 {[%clk 0:02:47]}  Nxe4 {[%clk 0:02:59]} 4. Bd3 {[%clk 0:02:46]}  d5 {[%clk 0:02:59]} 5. Nxe5 {[%clk 0:02:47]}  Nd7 {[%clk 0:02:59]} 6. Nxd7 {[%clk 0:02:47]}  Bxd7 {[%clk 0:03:00]} 7. O-O {[%clk 0:02:47]}  Bd6 {[%clk 0:03:00]} 8. c4 {[%clk 0:02:47]}  c6 {[%clk 0:03:00]} 9. Nc3 {[%clk 0:02:47]}  Nxc3 {[%clk 0:03:00]} 10. bxc3 {[%clk 0:02:47]}  dxc4 {[%clk 0:02:56]} 11. Re1+ {[%clk 0:02:45]}  Be6 {[%clk 0:02:55]} 12. Bxc4 {[%clk 0:02:45]}  O-O {[%clk 0:02:55]} 13. Bxe6 {[%clk 0:02:45]}  fxe6 {[%clk 0:02:55]} 14. Qg4 {[%clk 0:02:15]}  Kh8 {[%clk 0:02:55]} 15. Rxe6 {[%clk 0:02:11]}  Qd7 {[%clk 0:02:52]} 16. Bg5 {[%clk 0:01:58]}  Rae8 {[%clk 0:02:48]} 17. Rae1 {[%clk 0:01:57]}  Rxe6 {[%clk 0:02:41]} 18. Qxe6 {[%clk 0:01:56]}  Qc7 {[%clk 0:02:41]} 19. g3 {[%clk 0:01:41]}  h6 {[%clk 0:02:41]} 20. Be7 {[%clk 0:01:37]}  Re8 {[%clk 0:02:39]} 21. Bxd6 {[%clk 0:00:52]}  Rxe6 {[%clk 0:02:39]} 22. Rxe6 {[%clk 0:00:52]}  Qd7 {[%clk 0:02:38]} 23. Re7 {[%clk 0:00:39]}  Qxd6 {[%clk 0:02:35]} 24. Rxb7 {[%clk 0:00:39]}  a5 {[%clk 0:02:25]} 0-1


[Site "https://www.chess.com"]

[Event "Titled Tuesday Blitz December 20 Early 2022"]
[White "German, Gustavo"]
[Black "ChessFanNM"]
[WhiteFideId "103640"]
[WhiteElo "2515"]
[BlackElo "2395"]
[Result "1-0"]
[Round "02"]
[TimeControl "180+2"]
[Date "2022.12.20"]
[WhiteClock "0:00:05"]
[BlackClock "0:00:03"]

1. Nf3 {[%clk 0:02:56]}  d5 {[%clk 0:02:59]} 2. c4 {[%clk 0:02:53]}  c6 {[%clk 0:02:57]} 3. b3 {[%clk 0:02:45]}  Nf6 {[%clk 0:02:55]} 4. Bb2 {[%clk 0:02:42]}  Bf5 {[%clk 0:02:55]} 5. d3 {[%clk 0:02:41]}  e6 {[%clk 0:02:55]} 6. g3 {[%clk 0:02:41]}  h6 {[%clk 0:02:55]} 7. Bg2 {[%clk 0:02:40]}  Nbd7 {[%clk 0:02:55]} 8. O-O {[%clk 0:02:40]}  a5 {[%clk 0:02:56]} 9. a3 {[%clk 0:02:38]}  Be7 {[%clk 0:02:55]} 10. Nbd2 {[%clk 0:02:37]}  Bh7 {[%clk 0:02:55]} 11. Re1 {[%clk 0:02:36]}  O-O {[%clk 0:02:54]} 12. Ra2 {[%clk 0:02:29]}  Bd6 {[%clk 0:02:45]} 13. Qa1 {[%clk 0:02:28]}  Re8 {[%clk 0:02:44]} 14. e4 {[%clk 0:02:26]}  dxe4 {[%clk 0:02:21]} 15. Nxe4 {[%clk 0:02:24]}  Nxe4 {[%clk 0:02:17]} 16. dxe4 {[%clk 0:02:25]}  e5 {[%clk 0:01:58]} 17. Bc3 {[%clk 0:02:05]}  Qe7 {[%clk 0:01:57]} 18. Rd2 {[%clk 0:01:58]}  Nc5 {[%clk 0:01:56]} 19. Qb1 {[%clk 0:01:52]}  Bc7 {[%clk 0:01:51]} 20. Nh4 {[%clk 0:01:48]}  Rad8 {[%clk 0:01:44]} 21. Nf5 {[%clk 0:01:42]}  Bxf5 {[%clk 0:01:43]} 22. exf5 {[%clk 0:01:43]}  Rxd2 {[%clk 0:01:43]} 23. Bxd2 {[%clk 0:01:44]}  Rd8 {[%clk 0:01:43]} 24. Be3 {[%clk 0:01:40]}  Nd3 {[%clk 0:01:31]} 25. Rd1 {[%clk 0:01:29]}  e4 {[%clk 0:01:31]} 26. f6 {[%clk 0:01:24]}  Qxf6 {[%clk 0:01:15]} 27. Bxe4 {[%clk 0:01:20]}  Ne5 {[%clk 0:01:15]} 28. Kg2 {[%clk 0:01:06]}  Ng4 {[%clk 0:01:00]} 29. Rxd8+ {[%clk 0:00:29]}  Bxd8 {[%clk 0:01:00]} 30. Bc5 {[%clk 0:00:24]}  b6 {[%clk 0:00:54]} 31. Qd1 {[%clk 0:00:22]}  h5 {[%clk 0:00:38]} 32. Qd7 {[%clk 0:00:19]}  g6 {[%clk 0:00:27]} 33. Qe8+ {[%clk 0:00:18]}  Kh7 {[%clk 0:00:21]} 34. h3 {[%clk 0:00:07]}  bxc5 {[%clk 0:00:15]} 35. hxg4 {[%clk 0:00:08]}  hxg4 {[%clk 0:00:15]} 36. Bxc6 {[%clk 0:00:08]}  Kg7 {[%clk 0:00:15]} 37. Bd5 {[%clk 0:00:09]}  Qe7 {[%clk 0:00:14]} 38. Qc6 {[%clk 0:00:07]}  Qc7 {[%clk 0:00:12]} 39. Qb5 {[%clk 0:00:07]}  Be7 {[%clk 0:00:12]} 40. Qa6 {[%clk 0:00:05]}  Bd6 {[%clk 0:00:11]} 41. Qa8 {[%clk 0:00:05]}  Be7 {[%clk 0:00:10]} 42. Qe8 {[%clk 0:00:06]}  Bd6 {[%clk 0:00:09]} 43. Qe4 {[%clk 0:00:05]}  Qd7 {[%clk 0:00:07]} 44. Qe1 {[%clk 0:00:04]}  Qe7 {[%clk 0:00:07]} 45. Qd1 {[%clk 0:00:04]}  Be5 {[%clk 0:00:06]} 46. Qxg4 {[%clk 0:00:04]}  Bd4 {[%clk 0:00:06]} 47. Qf3 {[%clk 0:00:04]}  Qf6 {[%clk 0:00:04]} 48. Qe2 {[%clk 0:00:04]}  Qe5 {[%clk 0:00:03]} 49. Qf3 {[%clk 0:00:03]}  Qf6 {[%clk 0:00:03]} 50. Qxf6+ {[%clk 0:00:03]}  Kxf6 {[%clk 0:00:03]} 51. Kf3 {[%clk 0:00:03]}  Ke7 {[%clk 0:00:04]} 52. Ke4 {[%clk 0:00:04]}  Bb2 {[%clk 0:00:04]} 53. b4 {[%clk 0:00:04]}  Bxa3 {[%clk 0:00:03]} 54. bxa5 {[%clk 0:00:03]}  Kd6 {[%clk 0:00:03]} 55. a6 {[%clk 0:00:04]}  Kc7 {[%clk 0:00:03]} 56. a7 {[%clk 0:00:05]} 1-0


[Site "https://www.chess.com"]